lending/lending_fUSD_20250122
["ID","MTS","AMOUNT","RATE_DAILY","PERIOD"]
[349988935,1737551444943,-1283.3409928,0.00021122,2]
[349988936,1737551444953,-152.13796887,0.00021133,2]
[349988937,1737551444963,-1176.0,0.00021176,2]
[349988938,1737551444971,-157.159,0.00021176,2]
[349988939,1737551444981,-3903.0,0.00021176,2]
[349988940,1737551444990,-1106.0,0.00021176,2]
[349988941,1737551444999,-268.35,0.00021178,2]
[349988942,1737551445008,-1600.0,0.000212,7]
[349988943,1737551445018,-321.26614184,0.00021225,2]
[349988944,1737551445028,-535.06301335,0.00021244,2]
[349988945,1737551445037,-500.0,0.00021245,2]
[349988946,1737551445046,-500.0,0.00021245,2]
[349988947,1737551445055,-152.13796887,0.00021287,2]
[349988948,1737551445064,-150.0,0.000213,2]
[349988949,1737551445073,-2000.0,0.000213,7]
[349988950,1737551445086,-1283.3409928,0.00021317,2]
[349988951,1737551445096,-541.471187,0.00021345,2]
[349988952,1737551445105,-759.8,0.00021345,2]
[349988953,1737551445114,-1302.37,0.00021345,2]
[349988954,1737551445123,-776.97,0.00021345,2]
[349988955,1737551445133,-333.122812,0.00021345,2]
[349988956,1737551445142,-500.0,0.00021345,2]
[349988957,1737551445152,-562.21,0.00021345,2]
[349988958,1737551445163,-564.21,0.00021345,2]
[349988959,1737551445173,-500.0,0.00021345,2]
[349988960,1737551445183,-1324.09,0.00021345,2]
[349988961,1737551445193,-553.74,0.00021345,2]
[349988962,1737551445203,-639.6,0.00021345,2]
[349988963,1737551445214,-595.51,0.00021345,2]
[349988964,1737551445224,-500.0,0.00021345,2]
[349988965,1737551445234,-1280.54,0.00021345,2]
[349988966,1737551445243,-500.0,0.00021345,2]
[349988967,1737551445253,-683.22,0.00021345,2]
[349988968,1737551445262,-500.0,0.00021345,2]
[349988969,1737551445271,-759.8,0.00021345,2]
[349988970,1737551445280,-960.11,0.00021345,2]
[349988971,1737551445290,-881.08,0.00021345,2]
[349988972,1737551445299,-1052.55,0.00021345,2]
[349988973,1737551445310,-500.0,0.00021345,2]
[349988974,1737551445319,-1003.05,0.00021345,2]
[349988975,1737551445328,-536.69,0.00021345,2]
[349988976,1737551445338,-500.0,0.00021345,2]
[349988977,1737551445348,-723.9,0.00021345,2]
[349988979,1737551445361,-500.0,0.00021345,2]
[349988980,1737551445370,-634.07,0.00021345,2]
[349988981,1737551445380,-1287.78,0.00021345,2]
[349988982,1737551445390,-1624.71,0.00021345,2]
[349988983,1737551445400,-1377.4,0.00021345,2]
[349988984,1737551445409,-1105.48,0.00021345,2]
[349988985,1737551445420,-1777.81,0.00021345,2]
[349988986,1737551445429,-719.96,0.00021345,2]
[349988987,1737551445438,-601.49,0.00021345,2]
[349988988,1737551445447,-596.39,0.00021345,2]
[349988989,1737551445456,-655.1,0.00021345,2]
[349988990,1737551445466,-500.0,0.00021345,2]
[349988991,1737551445476,-1911.13,0.00021345,2]
[349988992,1737551445485,-1588.14,0.00021345,2]
[349988993,1737551445495,-790.29,0.00021345,2]
[349988994,1737551445504,-500.0,0.00021345,2]
[349988995,1737551445514,-500.0,0.00021345,2]
[349988996,1737551445523,-500.0,0.00021345,2]
[349988997,1737551445533,-774.05,0.00021345,2]
[349988998,1737551445543,-500.0,0.00021345,2]
[349988999,1737551445554,-500.0,0.00021345,2]
[349989000,1737551445564,-1746.92,0.00021345,2]
[349989001,1737551445575,-1132.43,0.00021345,2]
[349989002,1737551445585,-822.34,0.00021345,2]
[349989003,1737551445594,-500.0,0.00021346,2]
[349989004,1737551445604,-500.0,0.00021346,2]
[349989005,1737551445613,-500.0,0.00021346,2]
[349989006,1737551445622,-500.0,0.00021346,2]
[349989007,1737551445632,-500.0,0.00021346,2]
[349989008,1737551445641,-500.0,0.00021346,2]
[349989009,1737551445651,-500.0,0.00021346,2]
[349989010,1737551445661,-500.0,0.00021346,2]
[349989011,1737551445675,-500.0,0.00021346,2]
[349989012,1737551445684,-415.14379434,0.00021346,2]
[349989013,1737551445694,-500.0,0.00021346,2]
[349989014,1737551445703,-500.0,0.00021346,2]
[349989015,1737551445712,-500.0,0.00021346,2]
[349989016,1737551445722,-584.92,0.00021346,2]
[349989017,1737551445731,-500.0,0.00021346,2]
[349989018,1737551445741,-514.56043483,0.00021346,2]
[349989019,1737551445750,-500.0,0.00021346,2]
[349989020,1737551445760,-500.0,0.00021346,2]
[349989021,1737551445769,-533.72,0.00021346,2]
[349989022,1737551445779,-500.0,0.00021346,2]
[349989023,1737551445789,-500.0,0.00021346,2]
[349989024,1737551445799,-500.0,0.00021346,2]
[349989025,1737551445809,-570.58,0.00021346,2]
[349989026,1737551445818,-573.37,0.00021346,2]
[349989027,1737551445828,-383.291747,0.00021346,2]
[349989028,1737551445837,-500.0,0.00021346,2]
[349989029,1737551445847,-538.46,0.00021346,2]
[349989030,1737551445857,-500.0,0.00021346,2]
[349989031,1737551445869,-505.8,0.00021346,2]
[349989032,1737551445878,-500.0,0.00021346,2]
[349989033,1737551445887,-500.0,0.00021346,2]
[349989034,1737551445897,-500.0,0.00021346,2]
[349989035,1737551445907,-500.0,0.00021346,2]
[349989036,1737551445919,-500.0,0.00021346,2]
[349989037,1737551445929,-500.0,0.00021346,2]
[349989038,1737551445939,-500.0,0.00021346,2]
[349989039,1737551445948,-500.0,0.00021346,2]
[349989040,1737551445957,-500.0,0.00021346,2]
[349989041,1737551445966,-500.0,0.00021346,2]
[349989042,1737551445975,-500.0,0.00021346,2]
[349989043,1737551445985,-500.0,0.00021346,2]
[349989044,1737551445994,-645.83,0.00021346,2]
[349989045,1737551446004,-868.83,0.00021346,2]
[349989046,1737551446013,-500.0,0.00021346,2]
[349989047,1737551446024,-603.37,0.00021346,2]
[349989048,1737551446034,-500.0,0.00021346,2]
[349989049,1737551446044,-784.73,0.00021346,2]
[349989050,1737551446054,-915.68,0.00021346,2]
[349989051,1737551446065,-900.71,0.00021346,2]
[349989052,1737551446075,-1004.12,0.00021346,2]
[349989053,1737551446087,-500.0,0.00021346,2]
[349989054,1737551446097,-2221.21,0.00021346,2]
[349989055,1737551446110,-782.1,0.00021346,2]
[349989056,1737551446124,-500.0,0.00021346,2]
[349989057,1737551446138,-500.0,0.00021346,2]
[349989058,1737551446151,-3849.84,0.00021346,2]
[349989059,1737551446162,-1052.31,0.00021346,2]
[349989060,1737551446177,-500.0,0.00021346,2]
[349989061,1737551446191,-500.0,0.00021346,2]
[349989062,1737551446204,-537.3,0.00021346,2]
[349989063,1737551446216,-500.0,0.00021346,2]
[349989064,1737551446229,-1267.88,0.00021346,2]
[349989065,1737551446242,-500.0,0.00021346,2]
[349989066,1737551446253,-648.01348267,0.00021346,2]
[349989067,1737551446263,-533.31,0.00021346,2]
[349989068,1737551446277,-2150.61,0.00021346,2]
[349989069,1737551446290,-500.0,0.00021346,2]
[349989070,1737551446302,-1192.51,0.00021346,2]
[349989071,1737551446314,-696.52,0.00021346,2]
[349989072,1737551446327,-753.77,0.00021346,2]
[349989073,1737551446340,-500.0,0.00021346,2]
[349989074,1737551446352,-617.36,0.00021346,2]
[349989075,1737551446365,-1198.51,0.00021346,2]
[349989076,1737551446377,-733.92,0.00021346,2]
[349989077,1737551446390,-500.0,0.00021346,2]
[349989078,1737551446403,-500.0,0.00021346,2]
[349989079,1737551446415,-500.0,0.00021346,2]
[349989080,1737551446428,-800.92,0.00021346,2]
[349989081,1737551446440,-665.5,0.00021346,2]
[349989082,1737551446453,-374.79,0.00021346,2]
[349989083,1737551446467,-686.04,0.00021346,2]
[349989084,1737551446481,-500.0,0.00021346,2]
[349989085,1737551446493,-2608.89,0.00021346,2]
[349989086,1737551446505,-500.0,0.00021346,2]
[349989087,1737551446515,-500.0,0.00021346,2]
[349989088,1737551446526,-1000.0,0.00021346,2]
[349989089,1737551446539,-500.0,0.00021346,2]
[349989090,1737551446554,-500.0,0.00021346,2]
[349989091,1737551446565,-1048.97,0.00021346,2]
[349989092,1737551446575,-500.0,0.00021346,2]
[349989093,1737551446585,-614.1,0.00021346,2]
[349989094,1737551446596,-1206.48,0.00021346,2]
[349989095,1737551446609,-500.0,0.00021346,2]
[349989096,1737551446624,-500.0,0.00021346,2]
[349989097,1737551446636,-1009.96,0.00021346,2]
[349989098,1737551446646,-500.0,0.00021346,2]
[349989099,1737551446657,-1098.32,0.00021346,2]
[349989100,1737551446668,-500.0,0.00021346,2]
[349989101,1737551446679,-403.04081402,0.00021346,2]
[349989102,1737551446690,-500.0,0.00021346,2]
[349989103,1737551446701,-500.0,0.00021346,2]
[349989104,1737551446713,-500.0,0.00021346,2]
[349989105,1737551446724,-500.0,0.00021346,2]
[349989106,1737551446735,-500.0,0.00021346,2]
[349989107,1737551446747,-952.51,0.00021346,2]
[349989108,1737551446758,-500.0,0.00021346,2]
[349989109,1737551446769,-500.0,0.00021347,2]
[349989110,1737551446780,-500.0,0.00021347,2]
[349989111,1737551446792,-500.0,0.00021347,2]
[349989112,1737551446805,-500.0,0.00021347,2]
[349989113,1737551446825,-500.0,0.00021347,2]
[349989114,1737551446837,-500.0,0.00021347,2]
[349989115,1737551446849,-500.0,0.00021347,2]
[349989116,1737551446860,-500.0,0.00021347,2]
[349989117,1737551446874,-500.0,0.00021347,2]
[349989118,1737551446885,-500.0,0.00021347,2]
[349989119,1737551446895,-500.0,0.00021347,2]
[349989120,1737551446907,-500.0,0.00021347,2]
[349989121,1737551446918,-500.0,0.00021347,2]
[349989122,1737551446929,-500.0,0.00021347,2]
[349989123,1737551446942,-500.0,0.00021347,2]
[349989124,1737551446954,-500.0,0.00021347,2]
[349989125,1737551446966,-500.0,0.00021347,2]
[349989126,1737551446977,-500.0,0.00021347,2]
[349989127,1737551446988,-500.0,0.00021347,2]
[349989128,1737551446999,-500.0,0.00021347,2]
[349989129,1737551447010,-509.19,0.00021347,2]
[349989130,1737551447021,-500.0,0.00021347,2]
[349989131,1737551447032,-1696.80971404,0.00021376,2]
[349989132,1737551447043,-2105.0,0.00021377,2]
[349989133,1737551447055,-400.0,0.000214,7]
[349989134,1737551447066,-535.06301335,0.00021408,2]
[349989135,1737551447077,-500.0,0.00021411,7]
[349989136,1737551447087,-500.0,0.00021411,7]
[349989137,1737551447098,-500.0,0.00021411,7]
[349989138,1737551447110,-150.387,0.00021432,2]
[349989139,1737551447120,-567.0,0.00021432,2]
[349989140,1737551447132,-152.13796887,0.0002144,2]
[349989141,1737551447143,-321.26614184,0.0002145,2]
[349989142,1737551447155,-293710.95322384,0.000215,2]
[349989143,1737551447167,-94577.101167,0.000215,2]
[349989144,1737551447178,-400.0,0.000215,7]
[349989145,1737551447190,-250.0,0.000215,2]
[349989146,1737551447201,-250.0,0.000215,2]
[349989147,1737551447212,-227.79067551,0.000215,2]
[349989148,1737551447222,-425.8,0.000215,2]
[349989149,1737551447233,-1283.3409928,0.00021511,2]
[349989150,1737551447244,-500.0,0.00021519,2]
[349989151,1737551447255,-500.0,0.00021519,2]
[349989152,1737551447266,-165.9456554,0.0002156,2]
[349989153,1737551447277,-190.71612267,0.00021569,2]
[349989154,1737551447288,-4112.1530931,0.0002157,2]
[349989155,1737551447299,-535.06301335,0.00021572,2]
[349989156,1737551447310,-152.13796887,0.00021593,2]
[349989157,1737551447321,-2105.0,0.00021598,2]
[349989158,1737551447332,-400.0,0.000216,7]
[349989159,1737551447343,-569.59,0.00021617,2]
[349989160,1737551447354,-541.471187,0.00021619,2]
[349989161,1737551447366,-759.8,0.00021619,2]
[349989162,1737551447377,-1302.37,0.00021619,2]
[349989163,1737551447388,-776.97,0.00021619,2]
[349989164,1737551447399,-333.122812,0.00021619,2]
[349989165,1737551447410,-500.0,0.00021619,2]
[349989166,1737551447422,-562.21,0.00021619,2]
[349989167,1737551447433,-564.21,0.00021619,2]
[349989168,1737551447444,-1324.09,0.00021619,2]
[349989169,1737551447455,-553.74,0.00021619,2]
[349989170,1737551447467,-639.6,0.00021619,2]
[349989171,1737551447479,-595.51,0.00021619,2]
[349989172,1737551447490,-500.0,0.00021619,2]
[349989173,1737551447501,-1280.54,0.00021619,2]
[349989174,1737551447512,-500.0,0.00021619,2]
[349989175,1737551447523,-683.22,0.00021619,2]
[349989176,1737551447534,-500.0,0.00021619,2]
[349989177,1737551447546,-759.8,0.00021619,2]
[349989178,1737551447557,-960.11,0.00021619,2]
[349989179,1737551447568,-881.08,0.00021619,2]
[349989180,1737551447579,-1052.55,0.00021619,2]
[349989181,1737551447591,-1003.05,0.00021619,2]
[349989182,1737551447601,-536.69,0.00021619,2]
[349989183,1737551447610,-723.9,0.00021619,2]
[349989184,1737551447619,-500.0,0.00021619,2]
[349989185,1737551447629,-634.07,0.00021619,2]
[349989186,1737551447638,-1287.78,0.00021619,2]
[349989187,1737551447648,-1624.71,0.00021619,2]
[349989188,1737551447658,-1377.4,0.00021619,2]
[349989189,1737551447668,-1777.81,0.00021619,2]
[349989190,1737551447678,-1105.48,0.00021619,2]
[349989191,1737551447687,-719.96,0.00021619,2]
[349989192,1737551447696,-601.49,0.00021619,2]
[349989193,1737551447705,-596.39,0.00021619,2]
[349989194,1737551447714,-655.1,0.00021619,2]
[349989195,1737551447724,-500.0,0.00021619,2]
[349989196,1737551447734,-1911.13,0.00021619,2]
[349989197,1737551447743,-1588.14,0.00021619,2]
[349989198,1737551447753,-790.29,0.00021619,2]
[349989199,1737551447762,-500.0,0.00021619,2]
[349989200,1737551447771,-500.0,0.00021619,2]
[349989201,1737551447780,-265.1249457,0.00021619,2]
[349989202,1737551447790,-774.05,0.00021619,2]
[349989203,1737551447799,-500.0,0.00021619,2]
[349989204,1737551447809,-500.0,0.00021619,2]
[349989205,1737551447818,-1746.92,0.00021619,2]
[349989206,1737551448088,-1132.43,0.00021619,2]
[349989207,1737551448104,-822.34,0.00021619,2]
[349989208,1737551448113,-618.54490084,0.0002162,2]
[349989209,1737551448123,-500.0,0.0002162,2]
[349989210,1737551448132,-500.0,0.0002162,2]
[349989211,1737551448141,-500.0,0.0002162,2]
[349989212,1737551448151,-500.0,0.0002162,2]
[349989213,1737551448160,-500.0,0.0002162,2]
[349989214,1737551448170,-500.0,0.0002162,2]
[349989215,1737551448179,-500.0,0.0002162,2]
[349989216,1737551448189,-500.0,0.0002162,2]
[349989217,1737551448199,-500.0,0.0002162,2]
[349989218,1737551448208,-500.0,0.0002162,2]
[349989219,1737551448217,-500.0,0.0002162,2]
[349989220,1737551448226,-500.0,0.0002162,2]
[349989221,1737551448236,-402.01991689,0.0002162,2]
[349989222,1737551448245,-500.0,0.0002162,2]
[349989223,1737551448255,-533.72,0.0002162,2]
[349989224,1737551448264,-500.0,0.0002162,2]
[349989225,1737551448273,-500.0,0.0002162,2]
[349989226,1737551448283,-500.0,0.0002162,2]
[349989227,1737551448291,-570.58,0.0002162,2]
[349989228,1737551448301,-573.37,0.0002162,2]
[349989229,1737551448310,-500.0,0.0002162,2]
[349989230,1737551448320,-538.46,0.0002162,2]
[349989231,1737551448329,-500.0,0.0002162,2]
[349989232,1737551448338,-505.8,0.0002162,2]
[349989233,1737551448348,-500.0,0.0002162,2]
[349989234,1737551448357,-500.0,0.0002162,2]
[349989235,1737551448367,-500.0,0.0002162,2]
[349989236,1737551448376,-500.0,0.0002162,2]
[349989237,1737551448386,-500.0,0.0002162,2]
[349989238,1737551448395,-500.0,0.0002162,2]
[349989239,1737551448405,-500.0,0.0002162,2]
[349989240,1737551448414,-500.0,0.0002162,2]
[349989241,1737551448424,-500.0,0.0002162,2]
[349989242,1737551448434,-500.0,0.0002162,2]
[349989243,1737551448443,-500.0,0.0002162,2]
[349989244,1737551448452,-645.83,0.0002162,2]
[349989245,1737551448462,-868.83,0.0002162,2]
[349989246,1737551448474,-500.0,0.0002162,2]
[349989247,1737551448483,-603.37,0.0002162,2]
[349989248,1737551448493,-500.0,0.0002162,2]
[349989249,1737551448502,-784.73,0.0002162,2]
[349989250,1737551448512,-915.68,0.0002162,2]
[349989251,1737551448521,-900.71,0.0002162,2]
[349989252,1737551448531,-1004.12,0.0002162,2]
[349989253,1737551448541,-500.0,0.0002162,2]
[349989254,1737551448550,-2221.21,0.0002162,2]
[349989255,1737551448559,-782.1,0.0002162,2]
[349989256,1737551448569,-500.0,0.0002162,2]
[349989257,1737551448578,-500.0,0.0002162,2]
[349989258,1737551448587,-3849.84,0.0002162,2]
[349989259,1737551448597,-1052.31,0.0002162,2]
[349989260,1737551448606,-500.0,0.0002162,2]
[349989261,1737551448615,-500.0,0.0002162,2]
[349989262,1737551448625,-537.3,0.0002162,2]
[349989263,1737551448634,-500.0,0.0002162,2]
[349989264,1737551448643,-1267.88,0.0002162,2]
[349989265,1737551448653,-500.0,0.0002162,2]
[349989266,1737551448662,-533.31,0.0002162,2]
[349989267,1737551448673,-2150.61,0.0002162,2]
[349989268,1737551448683,-159.52468185,0.0002162,2]
[349989269,1737551448692,-1192.51,0.0002162,2]
[349989270,1737551448702,-696.52,0.0002162,2]
[349989271,1737551448711,-753.77,0.0002162,2]
[349989272,1737551448721,-500.0,0.0002162,2]
[349989273,1737551448730,-617.36,0.0002162,2]
[349989274,1737551448739,-1198.51,0.0002162,2]
[349989275,1737551448748,-733.92,0.0002162,2]
[349989276,1737551448758,-500.0,0.0002162,2]
[349989277,1737551448767,-500.0,0.0002162,2]
[349989278,1737551448776,-500.0,0.0002162,2]
[349989279,1737551448786,-800.92,0.0002162,2]
[349989280,1737551448795,-665.5,0.0002162,2]
[349989281,1737551448805,-686.04,0.0002162,2]
[349989282,1737551448814,-500.0,0.0002162,2]
[349989283,1737551448823,-2608.89,0.0002162,2]
[349989284,1737551448832,-500.0,0.0002162,2]
[349989285,1737551448842,-500.0,0.0002162,2]
[349989286,1737551448851,-377.69144891,0.0002162,2]
[349989287,1737551448864,-500.0,0.0002162,2]
[349989288,1737551448873,-1048.97,0.0002162,2]
[349989289,1737551448882,-500.0,0.0002162,2]
[349989290,1737551448892,-614.1,0.0002162,2]
[349989291,1737551448901,-1206.48,0.0002162,2]
[349989292,1737551448910,-500.0,0.0002162,2]
[349989293,1737551448921,-500.0,0.0002162,2]
[349989294,1737551448930,-1009.96,0.0002162,2]
[349989295,1737551448939,-500.0,0.0002162,2]
[349989296,1737551448948,-1098.32,0.0002162,2]
[349989297,1737551448958,-500.0,0.0002162,2]
[349989298,1737551448967,-500.0,0.0002162,2]
[349989299,1737551448976,-500.0,0.0002162,2]
[349989300,1737551448985,-500.0,0.0002162,2]
[349989301,1737551448995,-500.0,0.0002162,2]
[349989302,1737551449005,-500.0,0.0002162,2]
[349989303,1737551449014,-952.51,0.0002162,2]
[349989304,1737551449024,-500.0,0.0002162,2]
[349989305,1737551449034,-500.0,0.00021621,2]
[349989306,1737551449051,-500.0,0.00021621,2]
[349989307,1737551449060,-500.0,0.00021621,2]
[349989308,1737551449069,-500.0,0.00021621,2]
[349989309,1737551449079,-500.0,0.00021621,2]
[349989310,1737551449089,-500.0,0.00021621,2]
[349989311,1737551449098,-500.0,0.00021621,2]
[349989312,1737551449108,-500.0,0.00021621,2]
[349989313,1737551449118,-500.0,0.00021621,2]
[349989314,1737551449127,-500.0,0.00021621,2]
[349989315,1737551449136,-500.0,0.00021621,2]
[349989316,1737551449146,-500.0,0.00021621,2]
[349989317,1737551449156,-500.0,0.00021621,2]
[349989318,1737551449166,-500.0,0.00021621,2]
[349989319,1737551449176,-500.0,0.00021621,2]
[349989320,1737551449186,-500.0,0.00021621,2]
[349989321,1737551449195,-500.0,0.00021621,2]
[349989322,1737551449205,-500.0,0.00021621,2]
[349989323,1737551449215,-500.0,0.00021621,2]
[349989324,1737551449225,-500.0,0.00021621,2]
[349989325,1737551449234,-509.19,0.00021621,2]
[349989326,1737551449243,-500.0,0.00021621,2]
[349989327,1737551449253,-818.68549905,0.00021646,2]
[349989328,1737551449263,-500.0,0.00021669,2]
[349989329,1737551449272,-500.0,0.00021669,2]
[349989330,1737551449281,-768.0,0.0002167,2]
[349989331,1737551449291,-405395.49331667,0.0002167,2]
[349989332,1737551449300,-500.0,0.00021673,2]
[349989333,1737551449309,-500.0,0.00021673,2]
[349989334,1737551449319,-529.48360434,0.00021673,2]
[349989335,1737551449328,-530.79613968,0.00021673,2]
[349989336,1737551449338,-321.26614184,0.00021675,2]
[349989337,1737551449347,-500.0,0.00021685,7]
[349989338,1737551449357,-500.0,0.00021685,7]
[349989339,1737551449366,-1000.0,0.00021696,2]
[349989340,1737551449375,-400.0,0.000217,7]
[349989341,1737551449384,-1283.3409928,0.00021706,2]
[349989342,1737551449393,-406.4745265,0.00021732,2]
[349989343,1737551449403,-535.06301335,0.00021736,2]
[349989344,1737551449412,-150.0,0.00021739,2]
[349989345,1737551449421,-152.13796887,0.00021747,2]
[349989346,1737551449431,-1000.0,0.00021748,2]
[349989347,1737551449440,-150.0,0.00021748,2]
[349989348,1737551449450,-702.38139595,0.00021759,2]
[349989349,1737551449459,-150.0,0.00021761,2]
[349989350,1737551449469,-150.0,0.00021764,2]
[349989351,1737551449479,-150.0,0.00021776,2]
[349989352,1737551449488,-500.0,0.0002178,2]
[349989353,1737551449498,-683714.68335318,0.0002178,2]
[349989354,1737551449695,-306.99255271,0.00020424,2]
[349989355,1737551449705,-2317.70744729,0.0002178,2]
[349989356,1737551449718,-719.93728407,0.0002178,2]
[349989357,1737551449730,-526.05,0.0002178,2]
[349989358,1737551449742,-2589.50044772,0.0002178,2]
[349989359,1737551449755,-304954.10512645,0.0002178,2]
[349989360,1737551449764,-150.0,0.00021786,2]
[349989361,1737551449773,-500.0,0.00021793,2]
[349989362,1737551449782,-500.0,0.00021793,2]
[349989363,1737551449791,-999.0,0.00021799,2]
[349989364,1737551449800,-697.0,0.000218,7]
[349989365,1737551449809,-4254.43641519,0.000218,2]
[349989366,1737551449818,-24774.750001,0.000218,2]
[349989367,1737551449827,-24774.750002,0.000218,2]
[349989368,1737551449837,-24774.750002,0.000218,2]
[349989369,1737551449847,-17245.602527,0.000218,2]
[349989370,1737551449856,-17245.602527,0.000218,2]
[349989371,1737551449869,-1284.0,0.000218,2]
[349989372,1737551449878,-150.0,0.00021803,2]
[349989373,1737551449888,-150.0,0.00021808,2]
[349989374,1737551449897,-150.0,0.00021817,2]
[349989375,1737551449907,-2105.0,0.00021818,2]
[349989376,1737551449916,-150.0,0.0002182,2]
[349989377,1737551449927,-500.0,0.00021824,2]
[349989378,1737551449936,-1000.0,0.00021832,2]
[349989379,1737551449946,-500.0,0.00021836,2]
[349989380,1737551449960,-150.0,0.00021849,2]
[349989381,1737551449970,-150.0,0.00021869,2]
[349989382,1737551449979,-231.11515039,0.00021872,2]
[349989383,1737551449988,-150.0,0.00021885,2]
[349989384,1737551449997,-905.68047004,0.00021888,2]
[349989385,1737551450006,-541.471187,0.00021893,2]
[349989386,1737551450015,-759.8,0.00021893,2]
[349989387,1737551450025,-1302.37,0.00021893,2]
[349989388,1737551450034,-776.97,0.00021893,2]
[349989389,1737551450043,-333.122812,0.00021893,2]
[349989390,1737551450053,-500.0,0.00021893,2]
[349989391,1737551450062,-562.21,0.00021893,2]
[349989392,1737551450071,-564.21,0.00021893,2]
[349989393,1737551450080,-1324.09,0.00021893,2]
[349989394,1737551450089,-553.74,0.00021893,2]
[349989395,1737551450098,-639.6,0.00021893,2]
[349989396,1737551450107,-595.51,0.00021893,2]
[349989397,1737551450117,-500.0,0.00021893,2]
[349989398,1737551450126,-1280.54,0.00021893,2]
[349989399,1737551450135,-500.0,0.00021893,2]
[349989400,1737551450145,-683.22,0.00021893,2]
[349989401,1737551450154,-500.0,0.00021893,2]
[349989402,1737551450163,-759.8,0.00021893,2]
[349989403,1737551450173,-960.11,0.00021893,2]
[349989404,1737551450183,-881.08,0.00021893,2]
[349989405,1737551450191,-1052.55,0.00021893,2]
[349989406,1737551450202,-1003.05,0.00021893,2]
[349989407,1737551450213,-536.69,0.00021893,2]
[349989408,1737551450224,-723.9,0.00021893,2]
[349989409,1737551450234,-500.0,0.00021893,2]
[349989410,1737551450244,-634.07,0.00021893,2]
[349989411,1737551450253,-1287.78,0.00021893,2]
[349989412,1737551450262,-1624.71,0.00021893,2]
[349989413,1737551450271,-1377.4,0.00021893,2]
[349989414,1737551450280,-1777.81,0.00021893,2]
[349989415,1737551450289,-1105.48,0.00021893,2]
[349989416,1737551450299,-719.96,0.00021893,2]
[349989417,1737551450308,-601.49,0.00021893,2]
[349989418,1737551450317,-596.39,0.00021893,2]
[349989419,1737551450327,-655.1,0.00021893,2]
[349989420,1737551450336,-500.0,0.00021893,2]
[349989421,1737551450345,-1588.14,0.00021893,2]
[349989422,1737551450354,-1911.13,0.00021893,2]
[349989423,1737551450364,-790.29,0.00021893,2]
[349989424,1737551450373,-500.0,0.00021893,2]
[349989425,1737551450383,-500.0,0.00021893,2]
[349989426,1737551450392,-774.05,0.00021893,2]
[349989427,1737551450402,-500.0,0.00021893,2]
[349989428,1737551450411,-500.0,0.00021893,2]
[349989429,1737551450421,-1746.92,0.00021893,2]
[349989430,1737551450430,-1132.43,0.00021893,2]
[349989431,1737551450439,-822.34,0.00021893,2]
[349989432,1737551450449,-500.0,0.00021894,2]
[349989433,1737551450459,-500.0,0.00021894,2]
[349989434,1737551450468,-500.0,0.00021894,2]
[349989435,1737551450478,-500.0,0.00021894,2]